fUST/lending_fUST_20250724
["ID","MTS","AMOUNT","RATE_DAILY","PERIOD"]
[374476406,1753315848737,-460.0,0.0002,2]
[374476407,1753315848746,-460.0,0.0002,2]
[374476408,1753315848756,-460.0,0.0002,2]
[374476409,1753315848765,-460.0,0.0002,2]
[374476410,1753315848775,-606.49,0.0002,2]
[374476411,1753315848784,-460.0,0.0002,2]
[374476412,1753315848794,-460.0,0.0002,2]
[374476413,1753315848804,-460.0,0.0002,2]
[374476414,1753315848813,-460.0,0.0002,2]
[374476415,1753315848823,-460.0,0.0002,2]
[374476416,1753315848832,-490.96951478,0.0002,2]
[374476417,1753315848841,-460.0,0.0002,2]
[374476418,1753315848851,-460.0,0.0002,2]
[374476419,1753315848861,-460.0,0.0002,2]
[374476420,1753315848871,-460.0,0.0002,2]
[374476421,1753315848880,-460.0,0.0002,2]
[374476422,1753315848890,-645.58,0.0002,2]
[374476423,1753315848900,-1430.55,0.0002,2]
[374476424,1753315848910,-460.0,0.0002,2]
[374476425,1753315848919,-460.0,0.0002,2]
[374476426,1753315848929,-1596.33,0.0002,2]
[374476427,1753315848938,-460.0,0.0002,2]
[374476428,1753315848947,-460.0,0.0002,2]
[374476429,1753315848957,-460.0,0.0002,2]
[374476430,1753315848966,-460.0,0.0002,2]
[374476431,1753315848976,-460.0,0.0002,2]
[374476432,1753315848985,-460.0,0.0002,2]
[374476433,1753315848995,-460.0,0.0002,2]
[374476434,1753315849005,-460.0,0.0002,2]
[374476435,1753315849018,-460.0,0.0002,2]
[374476436,1753315849028,-1015.54,0.0002,2]
[374476437,1753315849038,-460.0,0.0002,2]
[374476438,1753315849047,-1069.89,0.0002,2]
[374476439,1753315849059,-460.0,0.0002,2]
[374476440,1753315849068,-460.0,0.0002,2]
[374476441,1753315849077,-460.0,0.0002,2]
[374476442,1753315849089,-460.0,0.0002,2]
[374476443,1753315849099,-674.14,0.0002,2]
[374476444,1753315849108,-225.65865543,0.0002,2]
[374476445,1753315849118,-1074.8,0.0002,2]
[374476446,1753315849127,-460.0,0.0002,2]
[374476447,1753315849136,-523.03997377,0.0002,2]
[374476448,1753315849146,-460.0,0.0002,2]
[374476449,1753315849156,-460.0,0.0002,2]
[374476450,1753315849165,-460.0,0.0002,2]
[374476451,1753315849175,-460.0,0.0002,2]
[374476452,1753315849184,-460.0,0.0002,2]
[374476453,1753315849194,-460.0,0.0002,2]
[374476454,1753315849203,-460.0,0.0002,2]
[374476455,1753315849213,-1504.83,0.0002,2]
[374476456,1753315849222,-460.0,0.0002,2]
[374476457,1753315849232,-460.0,0.0002,2]
[374476458,1753315849241,-460.0,0.0002,2]
[374476459,1753315849251,-828.07,0.0002,2]
[374476460,1753315849260,-460.0,0.0002,2]
[374476461,1753315849271,-460.0,0.0002,2]
[374476462,1753315849280,-500.0,0.00020021,2]
[374476463,1753315849290,-1000.0,0.00020021,2]
[374476464,1753315849299,-1000.0,0.00020021,2]
[374476465,1753315849308,-1000.0,0.00020021,2]
[374476466,1753315849325,-1082.41468936,0.00020021,2]
[374476467,1753315849336,-460.16365418,0.00020021,2]
[374476468,1753315849346,-500.0,0.00020021,2]
[374476469,1753315849355,-504.2039147,0.00020021,2]
[374476470,1753315849365,-1000.0,0.00020021,2]
[374476471,1753315849374,-500.0,0.00020021,2]
[374476472,1753315849384,-500.0,0.00020021,2]
[374476473,1753315849394,-205.185131,0.00020187,2]
[374476474,1753315849404,-460.0,0.00020273,2]
[374476475,1753315849413,-460.0,0.00020273,2]
[374476476,1753315849423,-460.0,0.00020273,2]
[374476477,1753315849432,-411.541725,0.00020273,2]
[374476478,1753315849442,-411.541725,0.00020273,2]
[374476479,1753315849451,-460.0,0.00020273,2]
[374476480,1753315849461,-460.0,0.00020273,2]
[374476481,1753315849470,-460.0,0.00020273,2]
[374476482,1753315849480,-729.98,0.00020273,2]
[374476483,1753315849490,-460.0,0.00020273,2]
[374476484,1753315849499,-460.0,0.00020273,2]
[374476485,1753315849509,-460.0,0.00020273,2]
[374476486,1753315849518,-460.0,0.00020273,2]
[374476487,1753315849527,-460.0,0.00020273,2]
[374476488,1753315849537,-460.0,0.00020273,2]
[374476489,1753315849546,-460.0,0.00020273,2]
[374476490,1753315849556,-274.68720444,0.00020273,2]
[374476491,1753315849565,-460.0,0.00020273,2]
[374476492,1753315849575,-460.0,0.00020273,2]
[374476493,1753315849584,-460.0,0.00020273,2]
[374476494,1753315849593,-460.0,0.00020273,2]
[374476495,1753315849603,-460.0,0.00020273,2]
[374476496,1753315849613,-624.26,0.00020273,2]
[374476497,1753315849623,-460.0,0.00020273,2]
[374476498,1753315849632,-460.0,0.00020273,2]
[374476499,1753315849642,-460.0,0.00020273,2]
[374476500,1753315849651,-541.16,0.00020273,2]
[374476501,1753315849661,-967.78,0.00020273,2]
[374476502,1753315849671,-460.0,0.00020273,2]
[374476503,1753315849680,-460.0,0.00020273,2]
[374476504,1753315849690,-460.0,0.00020273,2]
[374476505,1753315849700,-460.0,0.00020273,2]
[374476506,1753315849710,-460.0,0.00020273,2]
[374476507,1753315849720,-460.0,0.00020273,2]
[374476508,1753315849730,-460.0,0.00020273,2]
[374476509,1753315849739,-178.57970811,0.00020273,2]
[374476510,1753315849749,-460.0,0.00020273,2]
[374476511,1753315849759,-460.0,0.00020273,2]
[374476512,1753315849768,-460.0,0.00020273,2]
[374476513,1753315849779,-460.0,0.00020273,2]
[374476514,1753315849788,-460.0,0.00020273,2]
[374476515,1753315849797,-460.0,0.00020273,2]
[374476516,1753315849808,-460.0,0.00020273,2]
[374476517,1753315849818,-460.0,0.00020273,2]
[374476518,1753315849827,-460.0,0.00020273,2]
[374476519,1753315849836,-460.0,0.00020273,2]
[374476520,1753315849846,-460.0,0.00020273,2]
[374476521,1753315849857,-460.0,0.00020273,2]
[374476522,1753315849866,-460.0,0.00020273,2]
[374476523,1753315849876,-460.0,0.00020273,2]
[374476524,1753315849885,-591.07,0.00020273,2]
[374476525,1753315849895,-460.0,0.00020273,2]
[374476526,1753315849904,-460.0,0.00020273,2]
[374476527,1753315849914,-460.0,0.00020273,2]
[374476528,1753315849923,-460.0,0.00020273,2]
[374476529,1753315849932,-460.0,0.00020273,2]
[374476530,1753315849942,-460.0,0.00020273,2]
[374476531,1753315849951,-460.0,0.00020273,2]
[374476532,1753315849961,-460.0,0.00020273,2]
[374476533,1753315849971,-460.0,0.00020273,2]
[374476534,1753315849980,-460.0,0.00020273,2]
[374476535,1753315849990,-460.0,0.00020273,2]
[374476536,1753315850000,-460.0,0.00020273,2]
[374476537,1753315850011,-460.0,0.00020273,2]
[374476538,1753315850022,-460.0,0.00020273,2]
[374476539,1753315850032,-460.0,0.00020273,2]
[374476540,1753315850041,-501.96,0.00020273,2]
[374476541,1753315850051,-460.0,0.00020273,2]
[374476542,1753315850060,-586.50819878,0.00020273,2]
[374476543,1753315850069,-460.0,0.00020273,2]
[374476544,1753315850079,-1169.44,0.00020273,2]
[374476545,1753315850089,-460.0,0.00020273,2]
[374476546,1753315850099,-460.0,0.00020273,2]
[374476547,1753315850110,-460.0,0.00020273,2]
[374476548,1753315850119,-460.0,0.00020273,2]
[374476549,1753315850129,-460.0,0.00020273,2]
[374476550,1753315850139,-460.0,0.00020273,2]
[374476551,1753315850148,-460.0,0.00020273,2]
[374476552,1753315850158,-460.0,0.00020273,2]
[374476553,1753315850167,-460.0,0.00020273,2]
[374476554,1753315850176,-580.27323278,0.00020273,2]
[374476555,1753315850186,-460.0,0.00020273,2]
[374476556,1753315850196,-460.0,0.00020273,2]
[374476557,1753315850205,-3248.67,0.00020273,2]
[374476558,1753315850214,-460.0,0.00020273,2]
[374476559,1753315850224,-3113.31,0.00020273,2]
[374476560,1753315850321,-460.0,0.00020273,2]
[374476561,1753315850331,-460.0,0.00020273,2]
[374476562,1753315850340,-579.41,0.00020273,2]
[374476563,1753315850350,-460.0,0.00020273,2]
[374476564,1753315850360,-3509.86,0.00020273,2]
[374476565,1753315850370,-1815.77,0.00020273,2]
[374476566,1753315850379,-460.0,0.00020273,2]
[374476567,1753315850388,-460.0,0.00020273,2]
[374476568,1753315850398,-460.0,0.00020273,2]
[374476569,1753315850407,-460.0,0.00020273,2]
[374476570,1753315850417,-460.0,0.00020273,2]
[374476571,1753315850426,-473.36,0.00020273,2]
[374476572,1753315850436,-606.49,0.00020273,2]
[374476573,1753315850446,-460.0,0.00020273,2]
[374476574,1753315850455,-460.0,0.00020273,2]
[374476575,1753315850464,-461.34290555,0.00020273,2]
[374476576,1753315850474,-460.0,0.00020273,2]
[374476577,1753315850484,-460.0,0.00020273,2]
[374476578,1753315850493,-460.0,0.00020273,2]
[374476579,1753315850503,-460.0,0.00020273,2]
[374476580,1753315850512,-460.0,0.00020273,2]
[374476581,1753315850522,-645.58,0.00020273,2]
[374476582,1753315850531,-1430.55,0.00020273,2]
[374476583,1753315850541,-460.0,0.00020273,2]
[374476584,1753315850550,-1596.33,0.00020273,2]
[374476585,1753315850559,-460.0,0.00020273,2]
[374476586,1753315850569,-460.0,0.00020273,2]
[374476587,1753315850578,-460.0,0.00020273,2]
[374476588,1753315850587,-228.43453808,0.00020273,2]
[374476589,1753315850597,-460.0,0.00020273,2]
[374476590,1753315850607,-460.0,0.00020273,2]
[374476591,1753315850616,-460.0,0.00020273,2]
[374476592,1753315850625,-460.0,0.00020273,2]
[374476593,1753315850635,-1015.54,0.00020273,2]
[374476594,1753315850644,-460.0,0.00020273,2]
[374476595,1753315850653,-1069.89,0.00020273,2]
[374476596,1753315850663,-481.72036995,0.00020273,2]
[374476597,1753315850672,-460.0,0.00020273,2]
[374476598,1753315850682,-314.64906921,0.00020273,2]
[374476599,1753315850691,-460.0,0.00020273,2]
[374476600,1753315850701,-674.14,0.00020273,2]
[374476601,1753315850711,-1074.8,0.00020273,2]
[374476602,1753315850721,-460.0,0.00020273,2]
[374476603,1753315850730,-460.0,0.00020273,2]
[374476604,1753315850740,-460.0,0.00020273,2]
[374476605,1753315850750,-460.0,0.00020273,2]
[374476606,1753315850759,-460.0,0.00020273,2]
[374476607,1753315850769,-460.0,0.00020273,2]
[374476608,1753315850779,-460.0,0.00020273,2]
[374476609,1753315850789,-460.0,0.00020273,2]
[374476610,1753315850798,-1504.83,0.00020273,2]
[374476611,1753315850808,-460.0,0.00020273,2]
[374476612,1753315850818,-460.0,0.00020273,2]
[374476613,1753315850827,-828.07,0.00020273,2]
[374476614,1753315850837,-460.0,0.00020273,2]
[374476615,1753315850847,-151.0,0.00020521,2]
[374476616,1753315850856,-158.853062,0.00020521,2]
[374476617,1753315850866,-158.853062,0.00020521,2]
[374476618,1753315850875,-151.0,0.00020521,2]
[374476619,1753315850885,-151.0,0.00020521,2]
[374476620,1753315850895,-460.0,0.00020547,2]
[374476621,1753315850905,-460.0,0.00020547,2]
[374476622,1753315850914,-460.0,0.00020547,2]
[374476623,1753315850924,-460.0,0.00020547,2]
[374476624,1753315850933,-460.0,0.00020547,2]
[374476625,1753315850943,-729.98,0.00020547,2]
[374476626,1753315850953,-460.0,0.00020547,2]
[374476627,1753315850963,-460.0,0.00020547,2]
[374476628,1753315850972,-460.0,0.00020547,2]
[374476629,1753315850982,-460.0,0.00020547,2]
[374476630,1753315850992,-460.0,0.00020547,2]
[374476631,1753315851001,-460.0,0.00020547,2]
[374476632,1753315851012,-460.0,0.00020547,2]
[374476633,1753315851022,-460.0,0.00020547,2]
[374476634,1753315851031,-460.0,0.00020547,2]
[374476635,1753315851041,-460.0,0.00020547,2]
[374476636,1753315851051,-624.26,0.00020547,2]
[374476637,1753315851060,-460.0,0.00020547,2]
[374476638,1753315851070,-460.0,0.00020547,2]
[374476639,1753315851079,-460.0,0.00020547,2]
[374476640,1753315851089,-541.16,0.00020547,2]
[374476641,1753315851098,-967.78,0.00020547,2]
[374476642,1753315851109,-460.0,0.00020547,2]
[374476643,1753315851118,-460.0,0.00020547,2]
[374476644,1753315851127,-460.0,0.00020547,2]
[374476645,1753315851137,-460.0,0.00020547,2]
[374476646,1753315851146,-285.57859369,0.00020547,2]
[374476647,1753315851155,-460.0,0.00020547,2]
[374476648,1753315851165,-460.0,0.00020547,2]
[374476649,1753315851175,-460.0,0.00020547,2]
[374476650,1753315851184,-460.0,0.00020547,2]
[374476651,1753315851194,-460.0,0.00020547,2]
[374476652,1753315851203,-460.0,0.00020547,2]
[374476653,1753315851213,-460.0,0.00020547,2]
[374476654,1753315851223,-460.0,0.00020547,2]
[374476655,1753315851234,-460.0,0.00020547,2]
[374476656,1753315851244,-460.0,0.00020547,2]
[374476657,1753315851254,-460.0,0.00020547,2]
[374476658,1753315851264,-460.0,0.00020547,2]
[374476659,1753315851274,-460.0,0.00020547,2]
[374476660,1753315851285,-591.07,0.00020547,2]
[374476661,1753315851296,-460.0,0.00020547,2]
[374476662,1753315851306,-460.0,0.00020547,2]
[374476663,1753315851316,-460.0,0.00020547,2]
[374476664,1753315851326,-460.0,0.00020547,2]
[374476665,1753315851336,-460.0,0.00020547,2]
[374476666,1753315851346,-460.0,0.00020547,2]
[374476667,1753315851357,-460.0,0.00020547,2]
[374476668,1753315851366,-528.11373848,0.00020547,2]
[374476669,1753315851375,-460.0,0.00020547,2]
[374476670,1753315851384,-460.0,0.00020547,2]
[374476671,1753315851395,-497.74024295,0.00020547,2]
[374476672,1753315851404,-460.0,0.00020547,2]
[374476673,1753315851413,-271.08,0.00020547,2]
[374476674,1753315851423,-460.0,0.00020547,2]
[374476675,1753315851432,-460.0,0.00020547,2]
[374476676,1753315851442,-501.96,0.00020547,2]
[374476677,1753315851451,-460.0,0.00020547,2]
[374476678,1753315851460,-1169.44,0.00020547,2]
[374476679,1753315851470,-460.0,0.00020547,2]
[374476680,1753315851479,-460.0,0.00020547,2]
[374476681,1753315851489,-460.0,0.00020547,2]
[374476682,1753315851498,-460.0,0.00020547,2]
[374476683,1753315851507,-460.0,0.00020547,2]
[374476684,1753315851517,-460.0,0.00020547,2]
[374476685,1753315851526,-460.0,0.00020547,2]
[374476686,1753315851536,-460.0,0.00020547,2]
[374476687,1753315851545,-460.0,0.00020547,2]
[374476688,1753315851555,-460.0,0.00020547,2]
[374476689,1753315851564,-460.0,0.00020547,2]
[374476690,1753315851575,-460.0,0.00020547,2]
[374476691,1753315851585,-3248.67,0.00020547,2]
[374476692,1753315851595,-3113.31,0.00020547,2]
[374476693,1753315851605,-460.0,0.00020547,2]
[374476694,1753315851616,-460.0,0.00020547,2]
[374476695,1753315851627,-579.41,0.00020547,2]
[374476696,1753315851638,-460.0,0.00020547,2]
[374476697,1753315851648,-3509.86,0.00020547,2]
[374476698,1753315851658,-1815.77,0.00020547,2]
[374476699,1753315851667,-460.0,0.00020547,2]
[374476700,1753315851677,-542.93475489,0.00020547,2]
[374476701,1753315851687,-460.0,0.00020547,2]
[374476702,1753315851698,-460.0,0.00020547,2]
[374476703,1753315851707,-226.42514195,0.00020547,2]
[374476704,1753315851717,-460.0,0.00020547,2]
[374476705,1753315851727,-606.49,0.00020547,2]
[374476706,1753315851737,-460.0,0.00020547,2]
[374476707,1753315851747,-460.0,0.00020547,2]
[374476708,1753315851756,-372.94544657,0.00020547,2]
[374476709,1753315851765,-460.0,0.00020547,2]
[374476710,1753315851775,-460.0,0.00020547,2]
[374476711,1753315851784,-358.04,0.00020547,2]
[374476712,1753315851794,-645.58,0.00020547,2]
[374476713,1753315851803,-1430.55,0.00020547,2]
[374476714,1753315851814,-307.29947968,0.00020547,2]
[374476715,1753315851823,-1596.33,0.00020547,2]
[374476716,1753315851832,-460.0,0.00020547,2]
[374476717,1753315851842,-460.0,0.00020547,2]
[374476718,1753315851852,-460.0,0.00020547,2]
[374476719,1753315851862,-290.74670208,0.00020547,2]
[374476720,1753315851871,-460.0,0.00020547,2]
[374476721,1753315851881,-460.0,0.00020547,2]
[374476722,1753315851890,-460.0,0.00020547,2]
[374476723,1753315851900,-1015.54,0.00020547,2]
[374476724,1753315851909,-460.0,0.00020547,2]
[374476725,1753315851919,-1069.89,0.00020547,2]
[374476726,1753315851928,-460.0,0.00020547,2]
[374476727,1753315851938,-674.14,0.00020547,2]
[374476728,1753315851947,-1074.8,0.00020547,2]
[374476729,1753315851957,-460.0,0.00020547,2]
[374476730,1753315851968,-460.0,0.00020547,2]
[374476731,1753315851977,-460.0,0.00020547,2]
[374476732,1753315851987,-460.0,0.00020547,2]
[374476733,1753315851998,-460.0,0.00020547,2]
[374476734,1753315852010,-460.0,0.00020547,2]
[374476735,1753315852020,-460.0,0.00020547,2]
[374476736,1753315852029,-460.0,0.00020547,2]
[374476737,1753315852038,-1504.83,0.00020547,2]
[374476738,1753315852049,-460.0,0.00020547,2]
[374476739,1753315852059,-460.0,0.00020547,2]
[374476740,1753315852068,-465.79915113,0.00020547,2]
[374476741,1753315852304,-362.27084887,0.00020547,2]
[374476742,1753315852312,-460.0,0.00020547,2]
[374476743,1753315852320,-160.0,0.00020551,2]
[374476744,1753315852329,-526.15909479,0.00020551,2]
[374476745,1753315852338,-840.06856235,0.00020551,2]
[374476746,1753315852347,-160.0,0.00020551,2]
[374476747,1753315852356,-231.11583447,0.00020551,2]
[374476748,1753315852366,-160.0,0.00020551,2]
[374476749,1753315852375,-160.0,0.00020551,2]
[374476750,1753315852384,-215.84326551,0.00020551,2]
[374476751,1753315852393,-214.67886746,0.00020553,2]
[374476752,1753315852402,-12622.36869388,0.00020554,2]
[374476753,1753315852411,-160.0,0.00020554,2]
[374476754,1753315852420,-1500.0,0.00020568,2]
[374476755,1753315852429,-729.32942364,0.00020568,2]
[374476756,1753315852438,-160.30182313,0.0002058,2]
[374476757,1753315852447,-500.0,0.0002058,2]
[374476758,1753315852456,-180.32197335,0.0002058,2]
[374476759,1753315852465,-500.0,0.0002058,2]
[374476760,1753315852474,-5451.73971166,0.00020585,2]
[374476761,1753315852483,-252.0,0.00020682,2]
[374476762,1753315852493,-282.34,0.00020687,2]
[374476763,1753315852502,-332.1806871,0.00020769,2]
[374476764,1753315852511,-1148.0,0.00020781,2]
[374476765,1753315852521,-630.824,0.00020784,2]
[374476766,1753315852530,-460.0,0.00020821,2]
[374476767,1753315852539,-411.541725,0.00020821,2]
[374476768,1753315852548,-411.541725,0.00020821,2]
[374476769,1753315852557,-460.0,0.00020821,2]
[374476770,1753315852566,-460.0,0.00020821,2]
[374476771,1753315852575,-460.0,0.00020821,2]
[374476772,1753315852584,-729.98,0.00020821,2]
[374476773,1753315852594,-460.0,0.00020821,2]
[374476774,1753315852602,-460.0,0.00020821,2]
[374476775,1753315852613,-460.0,0.00020821,2]
[374476776,1753315852622,-460.0,0.00020821,2]
[374476777,1753315852630,-336.06,0.00020821,2]
[374476778,1753315852640,-460.0,0.00020821,2]
[374476779,1753315852649,-460.0,0.00020821,2]
[374476780,1753315852658,-460.0,0.00020821,2]
[374476781,1753315852667,-624.26,0.00020821,2]
[374476782,1753315852676,-460.0,0.00020821,2]
[374476783,1753315852685,-460.0,0.00020821,2]
[374476784,1753315852695,-460.0,0.00020821,2]
[374476785,1753315852704,-541.16,0.00020821,2]
[374476786,1753315852713,-967.78,0.00020821,2]
[374476787,1753315852722,-460.0,0.00020821,2]
[374476788,1753315852731,-460.0,0.00020821,2]
[374476789,1753315852740,-460.0,0.00020821,2]
[374476790,1753315852749,-460.0,0.00020821,2]
[374476791,1753315852758,-460.0,0.00020821,2]
[374476792,1753315852766,-460.0,0.00020821,2]
[374476793,1753315852776,-460.0,0.00020821,2]
[374476794,1753315852785,-460.0,0.00020821,2]
[374476795,1753315852794,-460.0,0.00020821,2]
[374476796,1753315852803,-460.0,0.00020821,2]
[374476797,1753315852812,-460.0,0.00020821,2]
[374476798,1753315852821,-460.0,0.00020821,2]
[374476799,1753315852830,-460.0,0.00020821,2]
[374476800,1753315852839,-460.0,0.00020821,2]
[374476801,1753315852848,-460.0,0.00020821,2]
[374476802,1753315852857,-591.07,0.00020821,2]
[374476803,1753315852869,-460.0,0.00020821,2]
[374476804,1753315852878,-460.0,0.00020821,2]
[374476805,1753315852887,-460.0,0.00020821,2]
[374476806,1753315852895,-460.0,0.00020821,2]
[374476807,1753315852904,-460.0,0.00020821,2]
[374476808,1753315852913,-460.0,0.00020821,2]
[374476809,1753315852923,-476.95398629,0.00020821,2]
[374476810,1753315852931,-460.0,0.00020821,2]
[374476811,1753315852941,-460.0,0.00020821,2]
[374476812,1753315852950,-460.0,0.00020821,2]
[374476813,1753315852960,-501.96,0.00020821,2]
[374476814,1753315852970,-460.0,0.00020821,2]
[374476815,1753315852979,-1169.44,0.00020821,2]
[374476816,1753315852988,-460.0,0.00020821,2]
[374476817,1753315852998,-460.0,0.00020821,2]
[374476818,1753315853009,-460.0,0.00020821,2]
[374476819,1753315853020,-460.0,0.00020821,2]
[374476820,1753315853030,-460.0,0.00020821,2]
[374476821,1753315853039,-460.0,0.00020821,2]
[374476822,1753315853049,-460.0,0.00020821,2]
[374476823,1753315853060,-460.0,0.00020821,2]
[374476824,1753315853069,-460.0,0.00020821,2]
[374476825,1753315853079,-460.0,0.00020821,2]
[374476826,1753315853090,-460.0,0.00020821,2]
[374476827,1753315853100,-460.0,0.00020821,2]
[374476828,1753315853112,-3248.67,0.00020821,2]
[374476829,1753315853121,-460.0,0.00020821,2]
[374476830,1753315853131,-460.0,0.00020821,2]
[374476831,1753315853141,-579.41,0.00020821,2]
[374476832,1753315853150,-460.0,0.00020821,2]
[374476833,1753315853160,-3509.86,0.00020821,2]
[374476834,1753315853169,-1815.77,0.00020821,2]
[374476835,1753315853179,-460.0,0.00020821,2]
[374476836,1753315853189,-460.0,0.00020821,2]
[374476837,1753315853198,-460.0,0.00020821,2]
[374476838,1753315853208,-606.49,0.00020821,2]
[374476839,1753315853217,-460.0,0.00020821,2]
[374476840,1753315853227,-460.0,0.00020821,2]
[374476841,1753315853236,-460.0,0.00020821,2]
[374476842,1753315853245,-460.0,0.00020821,2]
[374476843,1753315853255,-397.16778392,0.00020821,2]
[374476844,1753315853264,-645.58,0.00020821,2]
[374476845,1753315853274,-1430.55,0.00020821,2]
[374476846,1753315853283,-1596.33,0.00020821,2]
[374476847,1753315853293,-460.0,0.00020821,2]
[374476848,1753315853302,-460.0,0.00020821,2]
[374476849,1753315853312,-460.0,0.00020821,2]
[374476850,1753315853321,-460.0,0.00020821,2]
[374476851,1753315853332,-464.15,0.00020821,2]
[374476852,1753315853349,-460.0,0.00020821,2]
[374476853,1753315853371,-1015.54,0.00020821,2]
[374476854,1753315853381,-460.0,0.00020821,2]
[374476855,1753315853390,-1069.89,0.00020821,2]
[374476856,1753315853399,-153.57597038,0.00020821,2]
[374476857,1753315853409,-674.14,0.00020821,2]
[374476858,1753315853419,-1074.8,0.00020821,2]
[374476859,1753315853429,-460.0,0.00020821,2]
[374476860,1753315853439,-460.0,0.00020821,2]
[374476861,1753315853448,-460.0,0.00020821,2]
[374476862,1753315853457,-460.0,0.00020821,2]
[374476863,1753315853466,-460.0,0.00020821,2]
[374476864,1753315853475,-460.0,0.00020821,2]
[374476865,1753315853485,-460.0,0.00020821,2]
[374476866,1753315853494,-460.0,0.00020821,2]
[374476867,1753315853504,-1504.83,0.00020821,2]
[374476868,1753315853515,-415.02,0.00020821,2]
[374476869,1753315853525,-460.0,0.00020821,2]
[374476870,1753315853535,-828.07,0.00020821,2]
[374476871,1753315853545,-460.0,0.00020821,2]
[374476872,1753315853555,-500.0,0.00020856,2]
[374476873,1753315853565,-500.0,0.00020856,2]
[374476874,1753315853576,-500.0,0.00020856,2]
[374476875,1753315853586,-500.0,0.00020893,2]
[374476876,1753315853596,-500.0,0.00020945,2]
[374476877,1753315853605,-500.0,0.00021083,2]
[374476878,1753315853618,-500.0,0.00021093,2]
[374476879,1753315853627,-460.0,0.00021095,2]
[374476880,1753315853636,-151.0,0.00021095,2]
[374476881,1753315853649,-460.0,0.00021095,2]
[374476882,1753315853668,-158.853062,0.00021095,2]
[374476883,1753315853678,-158.853062,0.00021095,2]
[374476884,1753315853688,-151.0,0.00021095,2]
[374476885,1753315853698,-162.66753133,0.00021095,2]
[374476886,1753315853707,-729.98,0.00021095,2]
[374476887,1753315853718,-151.0,0.00021095,2]
[374476888,1753315853727,-460.0,0.00021095,2]
[374476889,1753315853825,-460.0,0.00021095,2]
[374476890,1753315853835,-460.0,0.00021095,2]
[374476891,1753315853845,-535.71956193,0.00021095,2]
[374476892,1753315853855,-460.0,0.00021095,2]
[374476893,1753315853866,-624.26,0.00021095,2]
[374476894,1753315853874,-460.0,0.00021095,2]
[374476895,1753315853884,-460.0,0.00021095,2]
[374476896,1753315853893,-460.0,0.00021095,2]
[374476897,1753315853902,-541.16,0.00021095,2]
[374476898,1753315853911,-967.78,0.00021095,2]
[374476899,1753315853921,-460.0,0.00021095,2]
[374476900,1753315853930,-181.15,0.00021095,2]
[374476901,1753315853940,-460.0,0.00021095,2]
[374476902,1753315853949,-460.0,0.00021095,2]
[374476903,1753315853958,-460.0,0.00021095,2]
[374476904,1753315853968,-460.0,0.00021095,2]
[374476905,1753315853978,-460.0,0.00021095,2]